[Event "HSK IM Invitational 2022"]
[Site "Hamburg"]
[Date "2022.05.20"]
[Round "1.1"]
[White "Hommer, Jeremy"]
[Black "Clarke, Brandon G I"]
[Result "0-1"]
[ECO "B51"]
[WhiteElo "2152"]
[BlackElo "2445"]
[Annotator "TA"]
[PlyCount "102"]
[EventDate "2022.05.20"]
[EventType "tourn"]
[EventCountry "GER"]
[SourceTitle "playchess.com"]
[Source "ChessBase"]
[SourceQuality "1"]
[TimeControl "40/5400+30:1800+30"]

{[%evp 9,102,13,21,14,20,23,23,14,21,21,27,18,34,10,9,6,13,7,26,23,32,5,0,0,0,-12,0,-35,-29,-37,-20,-20,18,-23,0,0,0,0,0,0,42,56,53,49,47,-96,-136,-173,-188,-174,-169,-179,-170,-158,-181,-235,-222,-229,-206,-207,-207,-198,-207,-210,-205,-253,-252,-242,-239,-260,-251,-247,-243,-258,-196,-214,-213,-288,-214,-194,-159,-154,-150,-235,-242,-242,-248,-281,-279,-471,-463,-460,-449,-439,-420]} 1. e4 {[%emt 0:00:03]} c5 {[%emt 0:00:09]} 2. Nf3 {[%emt 0:00:06]} d6 {[%emt 0:00:03]} 3. Bb5+ {[%emt 0:00:10]} Nd7 {[%emt 0:00:09]} 4. O-O {[%emt 0:00:13]} a6 {[%emt 0:00:03]} 5. Bd3 {[%emt 0:00:11]} Ngf6 {[%emt 0:00:05]} 6. Re1 {[%emt 0:00:18] B51: Sicilian: Moscow Variation (3 Bb5+) without 3...Bd7.} e6 {[%emt 0:00:07]} 7. c3 {[%emt 0:00:06]} b5 {[%emt 0:00:04]} 8. Bc2 {[%emt 0:00:08] White has an edge.} Bb7 {[%emt 0:00:07]} 9. d4 {[%emt 0:00:38]} Be7 {[%emt 0:00:03]} 10. Nbd2 {[%emt 0:00:16][%cal Bb1d2,Bd2f1,Bf1g3][%mdl 32]} O-O {[%emt 0:01:22]} 11. Nf1 {[%emt 0:00:06]} (11. e5 {feels hotter.} Ne8 12. Ne4 cxd4 13. exd6 Nxd6 14. Nxd6 Bxd6 15. Qd3) 11... Qc7 {[%emt 0:04:51]} 12. Ng3 {[%emt 0:00:07]} Rfc8 {[%emt 0:00:07]} 13. Bd3 {[%emt 0:00:37]} Nf8 {[%emt 0:02:38] [#]} 14. Bd2 $146 {[%emt 0:04:16]} ({Predecessor:} 14. h4 Ng4 15. Bg5 h6 16. Bd2 Qd8 17. h5 Bf6 18. Qe2 b4 19. Rad1 a5 20. Bf4 cxd4 21. cxd4 {0-1 (36) Ter Sahakyan,S (2553)-Korchmar,V (2411) Chess.com INT 2018}) 14... N6d7 {[%emt 0:06:04]} 15. h4 {[%emt 0:06:10]} (15. a4 {is more complex.} bxa4 16. Rxa4 d5 17. exd5 Bxd5 18. Nf5) 15... Nb6 {[%emt 0:00:50]} 16. b3 {[%emt 0:06:17]} c4 {[%emt 0:02:10]} 17. Bf1 {[%emt 0:01:47]} a5 {[%emt 0:11:52]} 18. Qe2 {[%emt 0:03:31][%cal Od4d5]} d5 {[%emt 0:01:39]} 19. e5 {[%emt 0:00:39]} b4 {[%emt 0:00:24] And now ...bxc3 would win.} 20. Rec1 {[%emt 0:02:14]} a4 {[%emt 0:14:35]} 21. Rab1 {[%emt 0:07:58]} (21. cxb4 $5 {[%cal Rb3c4]} axb3 22. axb3 $11) 21... cxb3 {[%emt 0:11:49]} 22. axb3 {[%emt 0:01:21]} Ba6 {[%emt 0:00:55]} 23. Qe1 {[%emt 0:01:01]} Bxf1 {[%emt 0:00:33]} 24. Nxf1 {[%emt 0:00:28]} a3 {[%emt 0:05:57]} 25. cxb4 {[%emt 0:01:57]} Qa7 {[%emt 0:04:28]} 26. Ra1 {[%emt 0:02:59]} a2 {[%emt 0:01:00]} 27. Bc3 {[%emt 0:06:00] [#]} (27. Rxc8 $14 {keeps the upper hand.} Nxc8 28. Qc1) 27... Qa3 $1 $17 {[%emt 0:01:13] Black is more active.} 28. N1d2 {[%emt 0:01:24]} Bxb4 {[%emt 0:07:11]} 29. Bxb4 {[%emt 0:16:58] [#]} Qxc1 {[%emt 0:02:02][%mdl 576] Remove Defender} 30. Rxc1 {[%emt 0:01:16]} Rxc1 {[%emt 0:00:03][%mdl 64] Remove Defender} 31. Qxc1 {[%emt 0:00:16]} a1=Q {[%emt 0:00:04] Inhibits Ba3.} 32. Qxa1 {[%emt 0:01:02]} (32. Nb1 $142) 32... Rxa1+ $19 {[%emt 0:00:02]} 33. Kh2 {[%emt 0:00:08]} f6 {[%emt 0:00:24]} 34. Kg3 {[%emt 0:03:37]} h5 {[%emt 0:00:20]} 35. Kf4 {[%emt 0:01:05]} Ng6+ {[%emt 0:00:03]} 36. Ke3 {[%emt 0:00:14]} Nd7 {[%emt 0:00:21][%cal Rf6e5]} 37. Bd6 {[%emt 0:00:55]} Kf7 {[%emt 0:00:46]} 38. g3 {[%emt 0:00:20]} Ne7 {[%emt 0:00:11]} 39. Bxe7 {[%emt 0:01:34]} Kxe7 {[%emt 0:00:02][%mdl 4096] Endgame KRN-KNN} 40. Kd3 {[%emt 0:00:15]} Ra2 {[%emt 0:00:56]} 41. Kc3 {[%emt 0:31:29]} Kf7 {[%emt 0:33:38]} 42. exf6 {[%emt 0:06:44]} gxf6 {[%emt 0:00:03]} 43. Kd3 {[%emt 0:04:41]} Kg6 {[%emt 0:00:05]} 44. Ne1 {[%emt 0:01:24]} e5 {[%emt 0:02:33] Threatens to win with ...exd4.} 45. Nc2 {[%emt 0:02:16]} Kf5 {[%emt 0:01:00]} ({Inferior is} 45... e4+ 46. Kc3 $15) 46. Ne3+ {[%emt 0:04:18]} (46. Nb4 $17 Ra5 47. Nc2) 46... Ke6 {[%emt 0:00:13]} 47. Nc2 {[%emt 0:03:06]} Nb8 {[%emt 0:04:47]} ({Stronger than} 47... e4+ 48. Kc3) 48. Nb4 {[%emt 0:04:41]} Ra1 {[%emt 0:00:07]} 49. Ke3 $2 {[%emt 0:02:11]} (49. Nc2 Rc1 50. b4) 49... Re1+ {[%emt 0:01:43] Black is clearly winning.} 50. Kf3 {[%emt 0:01:06]} e4+ {[%emt 0:00:43]} 51. Kg2 {[%emt 0:01:25]} Rd1 {[%emt 0:00:18] Weighted Error Value: White=0.21 (precise) /Black=0.09 (flawless)} 0-1

[Event "HSK IM Invitational 2022"]
[Site "Hamburg"]
[Date "2022.05.20"]
[Round "1.2"]
[White "Bracker, Arne"]
[Black "Fischer, Daniel"]
[Result "1-0"]
[ECO "B48"]
[WhiteElo "2276"]
[BlackElo "2367"]
[Annotator "TA"]
[PlyCount "119"]
[EventDate "2022.05.20"]
[EventType "tourn"]
[EventCountry "GER"]
[SourceTitle "playchess.com"]
[Source "ChessBase"]
[SourceQuality "1"]
[TimeControl "40/5400+30:1800+30"]

{[%evp 11,119,29,33,33,29,20,25,14,56,37,35,0,0,-66,-60,-59,-8,-32,0,-64,-73,-95,-66,-81,-91,-93,-88,-66,-75,-122,-25,-55,0,-90,274,274,274,274,272,272,260,269,316,127,363,371,376,361,359,178,178,179,178,179,272,272,426,406,335,333,2313,2120,2047,1736,1417,1339,621,3564,2741,2428,1959,2133,1564,1352,29942,5942,29955,29958,29960,29961,29960,29961,29962,29961,29962,29962,29961,29962,29967,29969,29965,29970,29968,29963,5427,5422,29977,29978,29978,29979,29979,29980,29981,29980,29979,29980,29984,29985,29985,29986]} 1. e4 {[%emt 0:00:05]} c5 {[%emt 0:00:07]} 2. Nf3 {[%emt 0:00:16]} e6 {[%emt 0:00:05]} 3. d4 {[%emt 0:00:08]} cxd4 {[%emt 0:00:05]} 4. Nxd4 {[%emt 0:00:06]} Nc6 {[%emt 0:00:24]} 5. Nc3 {[%emt 0:00:21][%cal Bb1c3,Bc3e2,Be2d4][%mdl 32]} Qc7 {[%emt 0:00:17]} 6. Be3 {[%emt 0:02:11]} a6 {[%emt 0:00:19]} 7. Qf3 {[%emt 0:00:08] B48: Sicilian: Taimanov: 5 Nc3 Qc7 6 Be3 a6 without Be2.} b5 {[%emt 0:00:28]} 8. Nxc6 {[%emt 0:06:18] 8.Qg3 is more fashionable.} Qxc6 {[%emt 1:32:45]} 9. Bd3 {[%emt 1:25:27] White has an edge.} b4 {[%emt 0:00:30]} 10. Ne2 {[%emt 0:00:30]} Nf6 {[%emt 0:00:30]} 11. Nd4 {[%emt 0:00:30]} Qc7 {[%emt 0:00:30]} 12. O-O-O {[%emt 0:00:30]} (12. Bf4 $11 Bd6 13. Bxd6 Qxd6 14. Nb3) 12... Bb7 $15 {[%emt 0:00:30] [#]} 13. Bf4 $146 {[%emt 0:00:30]} ({Predecessor:} 13. Rhe1 Be7 14. g4 d5 15. e5 Ne4 16. Qh3 Qxe5 17. f3 Nc5 18. Kb1 Nxd3 19. cxd3 {1-0 (40) Walter,S (2261)-Cajbel,M (2198) Jastrzebia Gora 2016}) 13... d6 {[%emt 0:00:30]} (13... Bd6 $15 14. Bxd6 Qxd6) 14. Rhe1 $11 {[%emt 0:00:30]} Be7 {[%emt 0:00:30]} (14... e5 {with more complications.} 15. Bg5 exd4 16. Bxf6 gxf6 17. Qxf6 Kd7) 15. Bg3 {[%emt 0:00:30]} (15. Qh3 $11) 15... O-O $15 {[%emt 0:00:30]} 16. Qe2 {[%emt 0:00:30]} Qb6 {[%emt 0:00:30]} 17. e5 {[%emt 0:00:30]} dxe5 {[%emt 0:00:30]} 18. Bxe5 {[%emt 0:00:30]} Rfd8 {[%emt 0:00:30]} (18... Bxg2 $2 19. Rg1 $18) 19. Kb1 {[%emt 0:00:30]} a5 {[%emt 0:00:30]} ({Reject} 19... Bxg2 20. Rg1 Bd5 21. Qe3 $11) 20. g4 {[%emt 0:00:30]} (20. f4 $142) 20... g6 {[%emt 0:00:30]} ({Better is} 20... Nd7 $1 $17 {[%cal Rd7e5]} 21. Nf3 Nxe5 22. Nxe5 Bg5) 21. Bc4 {[%emt 0:00:30][%cal Od4e6]} a4 {[%emt 0:00:30]} (21... Nd5 $15) 22. f4 {[%emt 0:00:30]} (22. Nxe6 $1 $11 {keeps the balance.} fxe6 23. Bd4 Rxd4 24. Qxe6+ Qxe6 25. Bxe6+ Kh8 26. Rxd4) 22... Nd7 $2 {[%emt 0:00:30][%mdl 8192] [#] White now steadily converts the win.} (22... Ne4 $17 {Strongly threatening ...a3.} 23. Nb5 a3 24. Rxd8+ Rxd8) 23. Nxe6 $1 $18 {[%emt 0:00:30][%mdl 512]} fxe6 {[%emt 0:00:30] [#]} 24. Bd6 {[%emt 0:00:30][%mdl 576] Decoy} Bxd6 {[%emt 0:00:30]} 25. Qxe6+ {[%emt 0:00:30]} Kh8 {[%emt 0:00:30][%cal Od6f4]} 26. Rxd6 {[%emt 0:00:30]} Qf2 {[%emt 0:00:30][%cal Oa8c8]} 27. Red1 {[%emt 0:00:30]} ({Less strong is} 27. Rc1 Qxf4 28. Rxd7 Rxd7 29. Qxd7 Bf3 $11) (27. g5 $1 $18) 27... Qxf4 $2 {[%emt 0:00:30]} 28. Rxd7 {[%emt 0:00:30]} Rxd7 {[%emt 0:00:30]} 29. Rxd7 {[%emt 0:00:30][%cal Oe6e7] White wants to mate with Qe7!} Rf8 {[%emt 0:00:30][%cal Of4f1] ( -> ...Qf1+!)} 30. Rf7 {[%emt 0:00:30]} (30. Re7 $142) 30... Rxf7 {[%emt 0:00:30]} 31. Qxf7 {[%emt 0:00:30]} Qxf7 {[%emt 0:00:30]} 32. Bxf7 {[%emt 0:00:30][%mdl 4096] Endgame aiming for Be8. KB-KB} Kg7 {[%emt 0:00:30]} (32... g5 $142 33. Be8 a3) 33. Be8 {[%emt 0:00:30]} a3 {[%emt 0:00:30]} (33... h6 $142 34. Bxa4 Kf6) 34. bxa3 {[%emt 0:00:30]} bxa3 35. g5 {[%emt 0:00:30]} h6 $2 {[%emt 0:01:00]} (35... Kf8 36. Ba4 Ke7) 36. gxh6+ {[%emt 0:00:30]} Kxh6 {[%emt 0:00:30]} 37. c4 {[%emt 0:00:30] Black must now prevent Kc2.} Be4+ {[%emt 0:00:30]} 38. Kc1 {[%emt 0:00:30]} Kg7 {[%emt 0:00:30] [#]} 39. Ba4 $1 {[%emt 0:00:30]} Kf6 {[%emt 0:00:30]} 40. Kd2 {[%emt 0:00:30]} Bb1 {[%emt 0:00:30]} 41. Bb3 {[%emt 0:30:30]} Ke5 {[%emt 0:30:30] [#]} 42. Kc3 $1 {[%emt 0:00:30]} g5 {[%emt 0:00:30]} 43. Kb4 {[%emt 0:00:30]} Kd6 {[%emt 0:00:30]} 44. Kxa3 {[%emt 0:00:30]} Kc5 {[%emt 0:00:30]} 45. Kb2 {[%emt 0:00:30]} Bf5 {[%emt 0:00:30]} 46. Kc3 {[%emt 0:00:30]} Be4 {[%emt 0:00:30]} 47. Bd1 {[%emt 0:00:30]} Bf5 {[%emt 0:00:30]} 48. Bf3 {[%emt 0:00:30]} Be6 {[%emt 0:00:30]} 49. Bd5 {[%emt 0:00:30]} Bf5 {[%emt 0:00:30]} 50. a4 {[%emt 0:00:30][%cal Ba2a4,Ba4a5,Ba5a6][%mdl 32]} Bd7 {[%emt 0:00:30]} 51. a5 {[%emt 0:00:30]} Bc8 {[%emt 0:00:30]} 52. Bf7 {[%emt 0:00:30]} Bb7 {[%emt 0:00:30]} 53. Be6 {[%emt 0:00:30]} Bf3 {[%emt 0:00:30]} 54. a6 {[%emt 0:00:30] White mates.} Kb6 {[%emt 0:00:30]} 55. Bc8 {[%emt 0:00:30]} Bg2 {[%emt 0:00:30]} 56. Kd4 {[%emt 0:00:30]} Bf1 {[%emt 0:00:30]} 57. Kd5 {[%emt 0:00:30]} Be2 {[%emt 0:00:30]} 58. Bb7 {[%emt 0:00:30]} Bd3 {[%emt 0:00:30]} 59. c5+ {[%emt 0:00:30][%cal Bc4c5,Bc5c6][%mdl 32]} Kc7 {[%emt 0:00:30]} 60. c6 {[%emt 0:00:30] Weighted Error Value: White=0.26 (precise) /Black=0.71} 1-0

[Event "HSK IM Invitational 2022"]
[Site "Hamburg"]
[Date "2022.05.20"]
[Round "1.3"]
[White "Kopylov, Michael"]
[Black "Miezis, Normunds"]
[Result "1/2-1/2"]
[ECO "E11"]
[WhiteElo "2378"]
[BlackElo "2452"]
[Annotator "TA"]
[PlyCount "31"]
[EventDate "2022.05.20"]
[EventType "tourn"]
[EventCountry "GER"]
[SourceTitle "playchess.com"]
[Source "ChessBase"]
[SourceQuality "1"]
[TimeControl "40/5400+30:1800+30"]

{[%evp 12,31,6,12,37,27,33,31,32,48,40,38,36,50,53,31,28,24,37,32,46,20]} 1. d4 {[%emt 0:08:38]} Nf6 {[%emt 0:00:55]} 2. c4 {[%emt 0:00:30]} e6 {[%emt 0:00:30]} 3. g3 {[%emt 0:00:50]} Bb4+ {[%emt 0:02:20]} 4. Bd2 {[%emt 0:02:08]} a5 {[%emt 0:00:59]} 5. Bg2 {[%emt 0:00:07]} d5 {[%emt 0:04:20]} 6. Nf3 {[%emt 0:03:54]} O-O {[%emt 0:01:16]} 7. O-O {[%emt 0:00:42] 7.Qc2 is the modern continuation.} b6 {[%emt 0:08:04] E11: Bogo-Indian.} 8. Bg5 {[%emt 0:17:44]} Be7 {[%emt 0:03:04]} 9. cxd5 {[%emt 0:02:54]} exd5 {[%emt 0:00:30]} 10. Nc3 {[%emt 0:00:19]} Bb7 {[%emt 0:02:33]} 11. Rc1 {[%emt 0:07:38]} (11. Ne5 {keeps more tension.} Nbd7 12. Qa4 Nxe5 13. dxe5 Ne4 14. Bxe7 Qxe7 15. Nxe4 dxe4 16. Bxe4 Bxe4 17. Qxe4 Rad8 18. Rfd1) 11... Na6 {[%emt 0:04:45]} 12. Ne5 {[%emt 0:05:43][%cal Bf3e5,Be5g4,Bg4f6][%mdl 32]} c5 {[%emt 0:08:49]} 13. dxc5 {[%emt 0:10:01]} Nxc5 {[%emt 0:07:31]} 14. Bxf6 {[%emt 0:11:23]} Bxf6 {[%emt 0:00:35]} 15. Ng4 {[%emt 0:00:04] [#] Pair of Knights!} Rb8 $146 {[%emt 0:14:09]} ({Predecessor:} 15... Bxc3 16. Rxc3 Ra7 17. Rc2 d4 18. Bxb7 Rxb7 19. Ne5 Qd5 20. Nd3 Re8 21. Nc1 b5 {0-1 (28) Medic,M (2288)-Kurajica,B (2540) Pula 2004}) 16. Nxf6+ {[%emt 0:08:55] Weighted Error Value: White=0.03 (flawless) /Black=0.07 (flawless)} 1/2-1/2

[Event "HSK IM Invitational 2022"]
[Site "Hamburg"]
[Date "2022.05.20"]
[Round "1.4"]
[White "Garner, Isaac"]
[Black "Kopylov, Daniel"]
[Result "1/2-1/2"]
[ECO "A30"]
[WhiteElo "2240"]
[BlackElo "2292"]
[Annotator "TA"]
[PlyCount "92"]
[EventDate "2022.05.20"]
[EventType "tourn"]
[EventCountry "GER"]
[SourceTitle "playchess.com"]
[Source "ChessBase"]
[SourceQuality "1"]
[TimeControl "40/5400+30:1800+30"]

{[%evp 21,92,27,35,28,25,15,34,33,36,12,11,-29,20,0,39,-2,20,0,0,0,36,17,237,173,220,210,209,207,262,247,233,219,241,232,262,254,369,370,375,395,422,358,357,364,363,374,534,345,432,420,429,325,293,306,289,27,31,34,34,37,196,0,0,0,0,0,0,0,0,0,0,0,0]} 1. Nf3 {[%emt 0:00:05]} c5 {[%emt 0:00:43]} 2. c4 {[%emt 0:00:10]} Nf6 {[%emt 0:00:16]} 3. b3 {[%emt 0:00:07]} g6 {[%emt 0:01:51]} 4. Bb2 {[%emt 0:00:08]} Bg7 {[%emt 0:00:38]} 5. g3 {[%emt 0:00:10]} b6 {[%emt 0:06:36]} 6. Bg2 {[%emt 0:00:10]} Bb7 {[%emt 0:00:15]} 7. O-O {[%emt 0:00:08]} O-O {[%emt 0:00:39]} 8. d4 {[%emt 0:00:06]} cxd4 {[%emt 0:02:12]} 9. Qxd4 {[%emt 0:00:07]} d6 {[%emt 0:15:03]} 10. Nc3 {[%emt 0:05:10]} Nbd7 {[%emt 0:05:38]} 11. Qd2 {[%emt 0:00:15]} Rc8 {[%emt 0:04:02]} 12. Ne1 {[%emt 0:00:38] A30: Symmetrical English: Double Fianchetto and Hedgehog.} Qc7 {[%emt 0:01:33] [#]} 13. e4 $146 {[%emt 0:14:49]} ({Predecessor:} 13. Nd5 Nxd5 14. Bxg7 Kxg7 15. Bxd5 Bxd5 16. Qxd5 Nf6 17. Qd3 Rfd8 18. e4 e6 19. Ng2 d5 20. exd5 exd5 {0-1 (44) Villalba,M (2195)-Leiva Rodriguez,J (2405) Asuncion 2014}) 13... Nc5 {[%emt 0:03:44]} 14. f3 {[%emt 0:01:06] White is slightly better.} Rfd8 {[%emt 0:12:51]} 15. Nd3 {[%emt 0:10:27]} e6 {[%emt 0:01:50]} 16. Bh3 {[%emt 0:05:35]} h5 {[%emt 0:06:35]} (16... a6 $142) 17. Rad1 {[%emt 0:14:01]} h4 {[%emt 0:02:05]} 18. Qf2 {[%emt 0:03:49]} Nh5 {[%emt 0:03:39]} 19. Nb5 {[%emt 0:05:15]} Qe7 {[%emt 0:03:37]} 20. Bxg7 {[%emt 0:02:40]} (20. gxh4 $2 Nxd3 21. Rxd3 Nf4 $19) 20... Kxg7 {[%emt 0:00:23]} 21. Nf4 {[%emt 0:00:41]} (21. gxh4 $2 Nxd3 22. Rxd3 Nf4 $19) 21... Rh8 {[%emt 0:19:26]} (21... Nxf4 $11 22. gxf4 a6) 22. Qb2+ {[%emt 0:11:22]} (22. Rxd6 a6 23. Nxh5+ Rxh5 $17) (22. Nxd6 hxg3 23. Nxh5+ Rxh5 24. Qxg3 Rch8 $14) 22... Kg8 {[%emt 0:04:49]} (22... Nf6 {was worth a try.}) 23. Nxh5 $18 {[%emt 0:01:12]} (23. Rxd6 $2 hxg3 24. Nxh5 Rxh5 $19) 23... Rxh5 {[%emt 0:00:20]} 24. g4 {[%emt 0:01:10]} (24. Nxa7 $6 hxg3 25. Nxc8 Bxc8 $16) 24... Rh8 {[%emt 0:02:07]} 25. Nxd6 {[%emt 0:00:41]} Rd8 {[%emt 0:01:03]} 26. e5 {[%emt 0:03:36]} a5 {[%emt 0:00:39]} 27. a3 {[%emt 0:02:41][%cal Ba2a3,Ba3b4][%mdl 32]} Bc6 {[%emt 0:00:39]} 28. b4 {[%emt 0:05:07]} axb4 {[%emt 0:00:20]} (28... Nd7 $142 29. f4 Kh7) 29. axb4 {[%emt 0:00:17]} Nd7 {[%emt 0:00:17]} 30. f4 {[%emt 0:01:54]} Kg7 {[%emt 0:00:34]} 31. Bg2 {[%emt 0:01:07]} Bxg2 {[%emt 0:00:28]} 32. Qxg2 {[%emt 0:00:07] aiming for f5.} (32. Kxg2 h3+ 33. Kh1 Rh4 $18) 32... h3 {[%emt 0:00:39]} 33. Qg3 {[%emt 0:02:21] And now f5 would win.} Ra8 {[%emt 0:00:26]} (33... Kf8 $142 34. Ra1 Nb8) 34. Ra1 {[%emt 0:00:53]} f6 {[%emt 0:00:41]} 35. g5 {[%emt 0:06:36]} Rxa1 {[%emt 0:00:37]} 36. gxf6+ {[%emt 0:00:45]} Nxf6 {[%emt 0:00:01]} 37. Rxa1 {[%emt 0:00:13] Threatens to win with f5. The board is on fire.} Nh5 {[%emt 0:01:04]} 38. Qe3 {[%emt 0:01:41]} ({Not} 38. Qxh3 Nxf4 39. Qf3 (39. Qg4 Rf8 $16) 39... Rf8 $16) (38. Qg5 $18 Qxg5+ 39. fxg5) 38... Rf8 $11 {[%emt 0:00:15]} 39. Qxh3 {[%emt 0:00:41]} Rxf4 {[%emt 0:00:48]} 40. Kh1 {[%emt 0:00:52] Strongly threatening Rg1. Active counter play!} Rf8 $2 {[%emt 0:00:34] [#]} (40... Qf8 $1 $14) 41. Qe3 $2 {[%emt 0:30:59]} (41. b5 $1 $18) 41... Qh4 $1 {[%emt 0:09:26] The position is equal.} 42. Ne4 {[%emt 0:00:00]} ({But not} 42. Qxb6 $2 Rf2 43. Qc7+ Kh6 44. Nf7+ {[#]} Rxf7 $1 {[%mdl 512]} 45. Qxf7 Qe4+ 46. Kg1 Qd4+ 47. Kg2 Qxa1 48. Qf8+ Kg5 49. Qe7+ Kf5 50. Qf8+ Ke4 51. Qf3+ Kxe5 52. Qe2+ Kd6 $19) 42... Rf5 {[%emt 0:05:16]} 43. Ra7+ {[%emt 0:00:00]} Kg8 {[%emt 0:00:27]} 44. Ra8+ {[%emt 0:00:00]} Kg7 {[%emt 0:00:37]} 45. Ra7+ {[%emt 0:00:00]} Kg8 {[%emt 0:00:11]} 46. Ra8+ {[%emt 0:00:00]} Kg7 {[%emt 0:00:10] Blacks defense is rewarded with a draw.  Weighted Error Value: White=0.35/Black=0.34} 1/2-1/2

[Event "HSK IM Invitational 2022"]
[Site "Hamburg"]
[Date "2022.05.30"]
[Round "1.5"]
[White "Schulze, Lara"]
[Black "Kotyk, Michael"]
[Result "1-0"]
[ECO "C54"]
[WhiteElo "2303"]
[BlackElo "2170"]
[Annotator "TA"]
[PlyCount "92"]
[EventDate "2022.05.20"]
[EventType "tourn"]
[EventCountry "GER"]
[SourceTitle "playchess.com"]
[Source "ChessBase"]
[SourceQuality "1"]
[TimeControl "40/5400+30:1800+30"]

{[%evp 11,92,0,0,-12,-10,-13,0,0,19,14,70,73,272,286,800,799,1104,731,704,215,204,202,208,189,231,233,240,194,239,227,207,177,186,163,147,152,227,195,263,258,272,257,306,295,302,314,314,312,300,287,272,202,208,0,270,0,172,168,152,166,262,250,314,320,299,321,347,342,542,391,384,384,391,385,385,329,393,372,1052,523,576,439,641]} 1. e4 {[%emt 1:31:00]} e5 {[%emt 1:31:00]} 2. Nf3 {[%emt 0:00:30]} Nc6 {[%emt 0:00:30]} 3. Bc4 {[%emt 0:00:30]} Bc5 {[%emt 0:00:30]} 4. c3 {[%emt 0:00:30][%cal Bc2c3,Bc3d4,Bd4d5][%mdl 32]} Nf6 {[%emt 0:00:30]} 5. d4 {[%emt 0:00:30]} exd4 {[%emt 0:00:30]} 6. cxd4 {[%emt 0:00:30]} Bb4+ {[%emt 0:00:30]} 7. Nbd2 {[%emt 0:00:30] C54: Giuoco Piano: 4 c3 Nf6, main lines with 5 d4 and 5 d3.} Nxe4 {[%emt 0:00:30] White should prevent ...d5.} 8. d5 {[%emt 0:00:30] aiming for 0-0.} Nxd2 {[%emt 0:00:30]} 9. Bxd2 {[%emt 0:00:30] The position is equal.} Qe7+ {[%emt 0:00:30]} 10. Kf1 {[%emt 0:00:30] [#]} b5 $146 {[%emt 0:00:30]} ({Black should try} 10... Nd8 $11) ({Predecessor:} 10... Na5 11. Bd3 O-O 12. Be3 b5 13. Qc2 Nc4 14. Bxh7+ Kh8 15. Bd4 c5 16. dxc6 dxc6 17. a3 Ba5 18. b4 Bb6 19. Re1 Be6 20. Ba1 {½-½ (20) Kurmann,O (2439)-Klauser,M (2384) Bern 2014}) 11. Bb3 $14 {[%emt 0:00:30]} (11. dxc6 bxc4 12. Bxb4 Qxb4 $15) 11... Na5 {[%emt 0:00:30]} (11... Nd8 $16) 12. d6 $1 $18 {[%emt 0:00:30][%mdl 64] [#] Deflection} Qxd6 {[%emt 0:00:30]} (12... Bxd6 13. Bxa5 O-O) 13. Qe1+ {[%emt 0:00:30]} Kd8 {[%emt 0:00:30]} 14. Bxb4 {[%emt 0:00:30]} Qd3+ {[%emt 0:00:30]} 15. Qe2 $2 {[%emt 0:00:30]} (15. Kg1 {[%csl Gb4][%cal Re1e7]} Bb7 16. Ne5) 15... Qxe2+ {[%emt 0:00:30]} 16. Kxe2 {[%emt 0:00:30]} Re8+ {[%emt 0:00:30]} 17. Kd2 {[%emt 0:00:30]} Nxb3+ {[%emt 0:00:30]} 18. axb3 {[%emt 0:00:30]} d6 {[%emt 0:00:30]} 19. Bc3 {[%emt 0:00:30]} f6 20. Nd4 {[%emt 0:00:30]} Bd7 {[%emt 0:01:00]} 21. b4 {[%emt 0:00:30]} a5 {[%emt 0:00:30]} 22. Ne2 {[%emt 0:00:30]} (22. bxa5 c5 $16) 22... a4 {[%emt 0:00:30]} 23. Nf4 {[%emt 0:00:30]} Kc8 {[%emt 0:00:30]} (23... c5 $16 {was necessary.} 24. f3 Ke7 25. Nd5+ Kd8) 24. f3 {[%emt 0:00:30]} Kb7 {[%emt 0:00:30]} (24... Re7 {was called for.} 25. Rhe1 Rf7) 25. Rhe1 {[%emt 0:00:30]} c5 {[%emt 0:00:30]} 26. Nh5 {[%emt 0:00:30]} Rxe1 {[%emt 0:00:30]} 27. Rxe1 {[%emt 0:00:30]} a3 {[%emt 0:00:30]} 28. bxa3 {[%emt 0:00:30]} (28. Nxg7 a2 $18) 28... Rxa3 {[%emt 0:00:30]} 29. Ra1 {[%emt 0:00:30] Inhibits Ra2+.} ({Weaker is} 29. Nxg7 Ra2+ 30. Kc1 Rxg2 $16) 29... cxb4 {[%emt 0:00:30]} 30. Bb2 {[%emt 0:00:30]} Rb3 {[%emt 0:00:30]} 31. Kc2 Re3 {[%emt 0:00:30]} 32. Kd2 {Prevents Re2+.} Rb3 {[%emt 0:00:30]} 33. Kc2 {[%emt 0:01:30]} Re3 {[%emt 0:00:30]} 34. Rd1 {[%emt 0:00:30]} Bf5+ {[%emt 0:00:30] [#]} 35. Kd2 $1 {[%emt 0:00:30]} ({Inferior is} 35. Kc1 Re2 36. Nxg7 Bg6 $11) 35... Rb3 (35... Re7 {is a better defense.} 36. Nf4 Rc7) 36. Kc1 {[%emt 0:00:30]} Re3 {[%emt 0:01:00]} 37. Nxg7 {[%emt 0:00:30]} Bg6 {[%emt 0:00:30]} 38. Kd2 {[%emt 0:00:30] Against Re2+} Rd3+ {[%emt 0:00:30]} 39. Ke2 {[%emt 0:00:30]} Ra3 {[%emt 0:00:30]} (39... Rxd1 $142 40. Kxd1 f5) 40. Rxd6 {[%emt 0:00:30]} Ra2 {[%emt 0:00:30]} 41. Rd2 {[%emt 0:30:30]} b3 {[%emt 0:30:30]} 42. Ne6 {[%emt 0:00:30]} Bc2 {[%emt 0:00:30]} 43. Nc5+ {[%emt 0:00:30]} Kb6 44. Nd3 {[%emt 0:00:30]} Kc6 $2 (44... f5 45. Bd4+ Kb7) 45. Bxf6 {[%emt 0:00:30]} (45. Nb4+ $142 Kc5 46. Nxa2) 45... Ra8 46. Kf2 {[%emt 0:00:30]} Re8 {Weighted Error Value: White=0.58/Black=0.41} (46... Bb1 $142 47. Ke3 Kb6 48. Bd4+ Kc7) 1-0